fUSD/lending_fUSD_20250216
["ID","MTS","AMOUNT","RATE_DAILY","PERIOD"]
[353233195,1739693454052,-500.0,0.00011123,2]
[353233196,1739693454062,-500.0,0.00011123,2]
[353233197,1739693454071,-500.0,0.00011123,2]
[353233198,1739693454079,-500.0,0.00011123,2]
[353233199,1739693454089,-500.0,0.00011123,2]
[353233200,1739693454097,-500.0,0.00011123,2]
[353233201,1739693454106,-500.0,0.00011123,2]
[353233202,1739693454115,-500.0,0.00011123,2]
[353233203,1739693454124,-500.0,0.00011123,2]
[353233204,1739693454133,-500.0,0.00011123,2]
[353233205,1739693454142,-500.0,0.00011123,2]
[353233206,1739693454151,-500.0,0.00011123,2]
[353233207,1739693454160,-500.0,0.00011123,2]
[353233208,1739693454170,-500.0,0.00011123,2]
[353233209,1739693454181,-500.0,0.00011123,2]
[353233210,1739693454191,-681.72,0.00011123,2]
[353233211,1739693454199,-669.19,0.00011123,2]
[353233212,1739693454209,-500.0,0.00011123,2]
[353233213,1739693454218,-500.0,0.00011123,2]
[353233214,1739693454227,-535.78,0.00011123,2]
[353233215,1739693454236,-500.0,0.00011123,2]
[353233216,1739693454245,-553.2,0.00011123,2]
[353233217,1739693454254,-500.0,0.00011123,2]
[353233218,1739693454263,-500.0,0.00011123,2]
[353233219,1739693454273,-685.05,0.00011123,2]
[353233220,1739693454282,-500.0,0.00011123,2]
[353233221,1739693454291,-680.9,0.00011123,2]
[353233222,1739693454300,-150.2,0.00011123,2]
[353233223,1739693454309,-500.0,0.00011123,2]
[353233224,1739693454318,-527.02,0.00011123,2]
[353233225,1739693454328,-500.0,0.00011123,2]
[353233226,1739693454337,-500.0,0.00011123,2]
[353233227,1739693454347,-669.59,0.00011123,2]
[353233228,1739693454356,-500.0,0.00011123,2]
[353233229,1739693454367,-500.0,0.00011123,2]
[353233230,1739693454376,-500.0,0.00011123,2]
[353233231,1739693454384,-500.0,0.00011123,2]
[353233232,1739693454394,-431.76483745,0.00011123,2]
[353233233,1739693454403,-500.0,0.00011123,2]
[353233234,1739693454412,-500.0,0.00011123,2]
[353233235,1739693454421,-863.76,0.00011123,2]
[353233236,1739693454431,-500.0,0.00011123,2]
[353233237,1739693454440,-500.0,0.00011123,2]
[353233238,1739693454449,-384.04011339,0.00011123,2]
[353233239,1739693454459,-842.56,0.00011123,2]
[353233240,1739693454468,-500.0,0.00011123,2]
[353233241,1739693454477,-500.0,0.00011123,2]
[353233242,1739693454486,-500.0,0.00011123,2]
[353233243,1739693454496,-533.36,0.00011123,2]
[353233244,1739693454505,-500.0,0.00011123,2]
[353233245,1739693454515,-500.0,0.00011123,2]
[353233246,1739693454524,-629.12,0.00011123,2]
[353233247,1739693454533,-500.0,0.00011123,2]
[353233248,1739693454544,-500.0,0.00011123,2]
[353233249,1739693454553,-500.0,0.00011123,2]
[353233250,1739693454563,-500.0,0.00011123,2]
[353233251,1739693454572,-502.91549626,0.00011123,2]
[353233252,1739693454581,-500.0,0.00011123,2]
[353233253,1739693454591,-500.0,0.00011123,2]
[353233254,1739693454600,-500.0,0.00011123,2]
[353233255,1739693454610,-500.0,0.00011123,2]
[353233256,1739693454620,-500.0,0.00011123,2]
[353233257,1739693454629,-1940.01,0.00011123,2]
[353233258,1739693454638,-508.33,0.00011123,2]
[353233259,1739693454647,-688.54,0.00011123,2]
[353233260,1739693454656,-500.0,0.00011123,2]
[353233261,1739693454665,-733.95,0.00011123,2]
[353233262,1739693454674,-500.0,0.00011123,2]
[353233263,1739693454684,-699.65,0.00011123,2]
[353233264,1739693454693,-500.0,0.00011123,2]
[353233265,1739693454703,-500.0,0.00011123,2]
[353233266,1739693454713,-500.0,0.00011123,2]
[353233267,1739693454722,-500.0,0.00011123,2]
[353233268,1739693454731,-206.08,0.00011123,2]
[353233269,1739693454741,-1010.83,0.00011123,2]
[353233270,1739693454750,-500.0,0.00011123,2]
[353233271,1739693454759,-500.0,0.00011123,2]
[353233272,1739693454768,-500.0,0.00011123,2]
[353233273,1739693454777,-500.0,0.00011123,2]
[353233274,1739693454787,-575.87,0.00011123,2]
[353233275,1739693454796,-610.37,0.00011123,2]
[353233276,1739693454806,-500.0,0.00011123,2]
[353233277,1739693454815,-708.75,0.00011123,2]
[353233278,1739693454824,-1037.76,0.00011123,2]
[353233279,1739693454833,-500.0,0.00011123,2]
[353233280,1739693454843,-549.57949122,0.00011123,2]
[353233281,1739693454852,-500.0,0.00011123,2]
[353233282,1739693454861,-500.0,0.00011123,2]
[353233283,1739693454871,-248.16,0.00011123,2]
[353233284,1739693454880,-456.93296502,0.00011123,2]
[353233285,1739693454889,-500.0,0.00011123,2]
[353233286,1739693454898,-571.28,0.00011123,2]
[353233287,1739693454907,-500.0,0.00011123,2]
[353233288,1739693454916,-500.0,0.00011123,2]
[353233289,1739693454926,-500.0,0.00011123,2]
[353233290,1739693454935,-426.4,0.00011123,2]
[353233291,1739693454945,-314.65881827,0.00011123,2]
[353233292,1739693454954,-500.0,0.00011123,2]
[353233293,1739693454965,-500.0,0.00011123,2]
[353233294,1739693454974,-917.4,0.00011123,2]
[353233295,1739693454983,-1418.61,0.00011123,2]
[353233296,1739693454992,-500.0,0.00011123,2]
[353233297,1739693455002,-500.0,0.00011123,2]
[353233298,1739693455011,-479.20314988,0.00011123,2]
[353233299,1739693455020,-500.0,0.00011123,2]
[353233300,1739693455030,-574.07,0.00011123,2]
[353233301,1739693455040,-1235.91,0.00011123,2]
[353233302,1739693455050,-500.0,0.00011123,2]
[353233303,1739693455060,-500.0,0.00011123,2]
[353233304,1739693455069,-675.8,0.00011123,2]
[353233305,1739693455078,-500.0,0.00011123,2]
[353233306,1739693455088,-500.0,0.00011123,2]
[353233307,1739693455097,-500.0,0.00011123,2]
[353233308,1739693455106,-500.0,0.00011123,2]
[353233309,1739693455115,-500.0,0.00011123,2]
[353233310,1739693455125,-663.58,0.00011123,2]
[353233311,1739693455134,-500.0,0.00011123,2]
[353233312,1739693455144,-537.48,0.00011123,2]
[353233313,1739693455153,-500.0,0.00011123,2]
[353233314,1739693455163,-500.0,0.00011123,2]
[353233315,1739693455174,-500.0,0.00011123,2]
[353233316,1739693455184,-500.0,0.00011123,2]
[353233317,1739693455194,-583.87,0.00011123,2]
[353233318,1739693455203,-500.0,0.00011123,2]
[353233319,1739693455212,-546.06,0.00011123,2]
[353233320,1739693455221,-500.0,0.00011123,2]
[353233321,1739693455230,-500.0,0.00011123,2]
[353233322,1739693455239,-500.0,0.00011123,2]
[353233323,1739693455248,-500.0,0.00011123,2]
[353233324,1739693455257,-640.58,0.00011123,2]
[353233325,1739693455265,-500.0,0.00011123,2]
[353233326,1739693455275,-500.0,0.00011123,2]
[353233327,1739693455284,-500.0,0.00011123,2]
[353233328,1739693455294,-516.82,0.00011123,2]
[353233329,1739693455303,-500.0,0.00011123,2]
[353233330,1739693455312,-500.0,0.00011123,2]
[353233331,1739693455320,-571.59,0.00011123,2]
[353233332,1739693455330,-500.0,0.00011123,2]
[353233333,1739693455338,-500.0,0.00011123,2]
[353233334,1739693455348,-500.0,0.00011123,2]
[353233335,1739693455357,-154.2,0.00011123,2]
[353233336,1739693455366,-323.36,0.00011123,2]
[353233337,1739693455375,-379.63825929,0.00011123,2]
[353233338,1739693455384,-500.0,0.00011123,2]
[353233339,1739693455393,-500.0,0.00011123,2]
[353233340,1739693455525,-481.82523485,0.00011123,2]
[353233341,1739693455535,-231.67330175,0.00011123,2]
[353233342,1739693455546,-500.0,0.00011123,2]
[353233343,1739693455556,-500.0,0.00011123,2]
[353233344,1739693455567,-645.76,0.00011123,2]
[353233345,1739693455576,-419.57206576,0.00011123,2]
[353233346,1739693455587,-512.2,0.00011123,2]
[353233347,1739693455596,-695.37,0.00011123,2]
[353233348,1739693455605,-500.0,0.00011123,2]
[353233349,1739693455617,-500.0,0.00011123,2]
[353233350,1739693455627,-500.0,0.00011123,2]
[353233351,1739693455637,-500.0,0.00011123,2]
[353233352,1739693455647,-500.0,0.00011123,2]
[353233353,1739693455656,-500.0,0.00011123,2]
[353233354,1739693455666,-500.0,0.00011123,2]
[353233355,1739693455676,-500.0,0.00011123,2]
[353233356,1739693455685,-500.0,0.00011123,2]
[353233357,1739693455694,-500.0,0.00011123,2]
[353233358,1739693455703,-500.0,0.00011123,2]
[353233359,1739693455712,-500.0,0.00011123,2]
[353233360,1739693455722,-500.0,0.00011123,2]
[353233361,1739693455731,-519.61,0.00011123,2]
[353233362,1739693455740,-679.91,0.00011123,2]
[353233363,1739693455750,-500.0,0.00011123,2]
[353233364,1739693455759,-500.0,0.00011123,2]
[353233365,1739693455769,-1111.22,0.00011123,2]
[353233366,1739693455778,-524.08577798,0.00011123,2]
[353233367,1739693455788,-715.04,0.00011123,2]
[353233368,1739693455799,-500.0,0.00011123,2]
[353233369,1739693455809,-504.05058367,0.00011123,2]
[353233370,1739693455818,-535.42,0.00011123,2]
[353233371,1739693455827,-500.0,0.00011123,2]
[353233372,1739693455841,-500.0,0.00011123,2]
[353233373,1739693455851,-500.0,0.00011123,2]
[353233374,1739693455860,-500.0,0.00011123,2]
[353233375,1739693455869,-500.0,0.00011123,2]
[353233376,1739693455879,-500.0,0.00011123,2]
[353233377,1739693455888,-517.98,0.00011123,2]
[353233378,1739693455897,-790.22,0.00011123,2]
[353233379,1739693455907,-500.0,0.00011123,2]
[353233380,1739693455917,-500.0,0.00011123,2]
[353233381,1739693455927,-1362.45,0.00011123,2]
[353233382,1739693455936,-752.51,0.00011123,2]
[353233383,1739693455945,-522.12,0.00011123,2]
[353233384,1739693455955,-494.44848412,0.00011123,2]
[353233385,1739693455964,-842.77,0.00011123,2]
[353233386,1739693455973,-500.0,0.00011123,2]
[353233387,1739693455982,-575.08,0.00011123,2]
[353233388,1739693455992,-612.93,0.00011123,2]
[353233389,1739693456002,-785.52,0.00011123,2]
[353233390,1739693456011,-1748.41,0.00011123,2]
[353233391,1739693456021,-503.63977736,0.00011123,2]
[353233392,1739693456031,-948.38,0.00011123,2]
[353233393,1739693456041,-583.84784422,0.00011123,2]
[353233394,1739693456050,-500.0,0.00011123,2]
[353233395,1739693456060,-1191.84,0.00011123,2]
[353233396,1739693456072,-500.0,0.00011123,2]
[353233397,1739693456081,-500.0,0.00011123,2]
[353233398,1739693456091,-500.0,0.00011123,2]
[353233399,1739693456100,-500.0,0.00011123,2]
[353233400,1739693456110,-500.0,0.00011123,2]
[353233401,1739693456120,-189.14,0.00011123,2]
[353233402,1739693456130,-914.37,0.00011123,2]
[353233403,1739693456140,-1487.82,0.00011123,2]
[353233404,1739693456150,-500.0,0.00011123,2]
[353233405,1739693456160,-596.72,0.00011123,2]
[353233406,1739693456170,-500.0,0.00011123,2]
[353233407,1739693456183,-1458.87,0.00011123,2]
[353233408,1739693456193,-569.92,0.00011123,2]
[353233409,1739693456202,-870.86,0.00011123,2]
[353233410,1739693456211,-500.0,0.00011123,2]
[353233411,1739693456222,-500.0,0.00011123,2]
[353233412,1739693456231,-1274.68,0.00011123,2]
[353233413,1739693456241,-762.18,0.00011123,2]
[353233414,1739693456252,-500.0,0.00011123,2]
[353233415,1739693456262,-934.2,0.00011123,2]
[353233416,1739693456271,-500.0,0.00011123,2]
[353233417,1739693456281,-1627.75,0.00011123,2]
[353233418,1739693456290,-500.0,0.00011123,2]
[353233419,1739693456301,-500.0,0.00011123,2]
[353233420,1739693456311,-893.41,0.00011123,2]
[353233421,1739693456320,-801.66,0.00011123,2]
[353233422,1739693456330,-1473.94,0.00011123,2]
[353233423,1739693456340,-519.64785602,0.00011123,2]
[353233424,1739693456350,-1252.3,0.00011123,2]
[353233425,1739693456359,-500.0,0.00011123,2]
[353233426,1739693456369,-654.93,0.00011123,2]
[353233427,1739693456378,-500.0,0.00011123,2]
[353233428,1739693456388,-386.51087991,0.00011123,2]
[353233429,1739693456398,-500.0,0.00011123,2]
[353233430,1739693456408,-500.0,0.00011123,2]
[353233431,1739693456419,-1930.43,0.00011123,2]
[353233432,1739693456428,-2845.78,0.00011123,2]
[353233433,1739693456438,-1075.83,0.00011123,2]
[353233434,1739693456447,-500.0,0.00011123,2]
[353233435,1739693456457,-548.94,0.00011123,2]
[353233436,1739693456467,-1088.93,0.00011123,2]
[353233437,1739693456477,-706.27,0.00011123,2]
[353233438,1739693456487,-1059.89,0.00011123,2]
[353233439,1739693456496,-1271.66,0.00011123,2]
[353233440,1739693456505,-500.0,0.00011123,2]
[353233441,1739693456514,-1098.98,0.00011123,2]
[353233442,1739693456523,-500.0,0.00011123,2]
[353233443,1739693456533,-911.39,0.00011123,2]
[353233444,1739693456544,-500.0,0.00011123,2]
[353233445,1739693456554,-914.0,0.00011123,2]
[353233446,1739693456565,-843.66,0.00011123,2]
[353233447,1739693456575,-500.0,0.00011123,2]
[353233448,1739693456585,-1618.34,0.00011123,2]
[353233449,1739693456595,-2242.66,0.00011123,2]
[353233450,1739693456604,-1510.94,0.00011123,2]
[353233451,1739693456615,-1232.19,0.00011123,2]
[353233452,1739693456624,-500.0,0.00011123,2]
[353233453,1739693456634,-500.0,0.00011123,2]
[353233454,1739693456644,-738.69,0.00011123,2]
[353233455,1739693456653,-1873.03,0.00011123,2]
[353233456,1739693456662,-738.36,0.00011123,2]
[353233457,1739693456671,-550.98,0.00011123,2]
[353233458,1739693456681,-1772.73,0.00011123,2]
[353233459,1739693456690,-644.38,0.00011123,2]
[353233460,1739693456701,-1414.42,0.00011123,2]
[353233461,1739693456710,-500.0,0.00011123,2]
[353233462,1739693456720,-500.0,0.00011123,2]
[353233463,1739693456730,-500.0,0.00011123,2]
[353233464,1739693456740,-500.0,0.00011123,2]
[353233465,1739693456751,-971.55,0.00011123,2]
[353233466,1739693456761,-500.0,0.00011123,2]
[353233467,1739693456771,-517.21,0.00011123,2]
[353233468,1739693456780,-1779.65,0.00011123,2]
[353233469,1739693456792,-616.51,0.00011123,2]
[353233470,1739693456802,-1764.2,0.00011123,2]
[353233471,1739693456812,-3098.6,0.00011123,2]
[353233472,1739693456822,-1025.81,0.00011123,2]
[353233473,1739693456831,-1699.9,0.00011123,2]
[353233474,1739693456841,-3613.38,0.00011123,2]
[353233475,1739693456850,-1678.0,0.00011123,2]
[353233476,1739693456859,-535.91,0.00011123,2]
[353233477,1739693456868,-1152.22,0.00011123,2]
[353233478,1739693456877,-907.34,0.00011123,2]
[353233479,1739693456886,-500.0,0.00011123,2]
[353233480,1739693456896,-3037.62,0.00011123,2]
[353233481,1739693456906,-1912.24,0.00011123,2]
[353233482,1739693456915,-1045.48,0.00011123,2]
[353233483,1739693456925,-2072.12,0.00011123,2]
[353233484,1739693456934,-500.0,0.00011123,2]
[353233485,1739693456943,-1391.39,0.00011123,2]
[353233486,1739693456954,-500.0,0.00011123,2]
[353233487,1739693456963,-814.32,0.00011123,2]
[353233488,1739693456972,-1395.61,0.00011123,2]
[353233489,1739693456982,-500.0,0.00011123,2]
[353233490,1739693456992,-500.0,0.00011123,2]
[353233491,1739693457005,-1554.3,0.00011123,2]
[353233492,1739693457015,-801.19,0.00011123,2]
[353233493,1739693457024,-500.0,0.00011123,2]
[353233494,1739693457033,-1173.12,0.00011123,2]
[353233495,1739693457043,-804.51,0.00011123,2]
[353233496,1739693457052,-1232.61,0.00011123,2]
[353233497,1739693457061,-743.71,0.00011123,2]
[353233498,1739693457071,-532.87126288,0.00011123,2]
[353233499,1739693457080,-1900.23,0.00011123,2]
[353233500,1739693457089,-2056.31,0.00011123,2]
[353233501,1739693457099,-500.0,0.00011123,2]
[353233502,1739693457108,-500.0,0.00011123,2]
[353233503,1739693457118,-500.0,0.00011123,2]
[353233504,1739693457128,-957.04,0.00011123,2]
[353233505,1739693457138,-500.0,0.00011123,2]
[353233506,1739693457147,-1146.85,0.00011123,2]
[353233507,1739693457157,-1550.6,0.00011123,2]
[353233508,1739693457167,-2373.51,0.00011123,2]
[353233509,1739693457180,-3912.64,0.00011123,2]
[353233510,1739693457190,-1643.53,0.00011123,2]
[353233511,1739693457200,-1084.43,0.00011123,2]
[353233512,1739693457210,-5172.54,0.00011123,2]
[353233513,1739693457219,-1459.19,0.00011123,2]
[353233514,1739693457229,-364.9693019,0.00011123,2]
[353233515,1739693457238,-1758.63,0.00011123,2]
[353233516,1739693457248,-500.0,0.00011123,2]
[353233517,1739693457257,-2056.22,0.00011123,2]
[353233518,1739693457267,-1267.31,0.00011123,2]
[353233519,1739693457276,-500.0,0.00011123,2]
[353233520,1739693457285,-981.99,0.00011123,2]
[353233521,1739693457295,-500.0,0.00011123,2]
[353233522,1739693457304,-500.0,0.00011123,2]
[353233523,1739693457314,-677.34,0.00011123,2]
[353233524,1739693457323,-1754.09,0.00011123,2]
[353233525,1739693457332,-1267.47,0.00011123,2]
[353233526,1739693457341,-500.0,0.00011123,2]
[353233527,1739693457351,-1913.38,0.00011123,2]
[353233528,1739693457360,-712.96,0.00011123,2]
[353233529,1739693457370,-3004.31,0.00011123,2]
[353233530,1739693457379,-1092.38,0.00011123,2]
[353233531,1739693457388,-675.43,0.00011123,2]
[353233532,1739693457398,-500.0,0.00011123,2]
[353233533,1739693457408,-983.17,0.00011123,2]
[353233534,1739693457417,-500.0,0.00011123,2]
[353233535,1739693457427,-1277.4,0.00011123,2]
[353233536,1739693457437,-664.05,0.00011123,2]
[353233537,1739693457447,-990.09,0.00011123,2]
[353233538,1739693457456,-500.0,0.00011123,2]
[353233539,1739693457466,-500.0,0.00011123,2]
[353233540,1739693457476,-500.0,0.00011123,2]
[353233541,1739693457486,-999.6,0.00011123,2]
[353233542,1739693457495,-500.0,0.00011123,2]
[353233543,1739693457505,-500.0,0.00011123,2]
[353233544,1739693457515,-1898.72,0.00011123,2]
[353233545,1739693457524,-2997.14,0.00011123,2]
[353233546,1739693457534,-500.0,0.00011123,2]
[353233547,1739693457545,-500.0,0.00011123,2]
[353233548,1739693457555,-502.25,0.00011123,2]
[353233549,1739693457564,-500.0,0.00011123,2]
[353233550,1739693457574,-353.96,0.00011123,2]
[353233551,1739693457583,-500.0,0.00011123,2]
[353233552,1739693457593,-1417.68,0.00011123,2]
[353233553,1739693457603,-402.9585279,0.00011123,2]
[353233554,1739693457613,-868.14,0.00011123,2]
[353233555,1739693457623,-1565.59,0.00011123,2]
[353233556,1739693457632,-508.30618127,0.00011123,2]
[353233557,1739693457642,-3878.36,0.00011123,2]
[353233558,1739693457652,-613.95,0.00011123,2]
[353233559,1739693457662,-500.0,0.00011123,2]
[353233560,1739693457672,-1515.99,0.00011123,2]
[353233561,1739693457681,-623.81,0.00011123,2]
[353233562,1739693457691,-500.0,0.00011123,2]
[353233563,1739693457702,-600.1,0.00011123,2]
[353233564,1739693457712,-500.0,0.00011123,2]
[353233565,1739693457722,-545.31,0.00011123,2]
[353233566,1739693457732,-509.32083813,0.00011123,2]
[353233567,1739693457741,-1031.54,0.00011123,2]
[353233568,1739693457875,-150.0,0.00011123,2]
[353233569,1739693457885,-1785.0,0.00011123,2]
[353233570,1739693457895,-204.34811501,0.00011151,2]
[353233571,1739693457905,-1785.0,0.00011151,2]
[353233572,1739693457915,-35733.78591509,0.00011157,2]
[353233573,1739693457924,-1218.64,0.00011176,2]
[353233574,1739693457934,-1785.0,0.00011178,2]
[353233575,1739693457943,-415.87832048,0.00011183,2]
[353233576,1739693457953,-207.26195141,0.00011187,2]
[353233577,1739693457963,-500.0,0.00011205,2]
[353233578,1739693457973,-500.0,0.00011205,2]
[353233579,1739693457983,-517.0,0.00011205,2]
[353233580,1739693457993,-500.0,0.00011205,2]
[353233581,1739693458003,-1688.32,0.00011205,2]
[353233582,1739693458012,-500.0,0.00011205,2]
[353233583,1739693458021,-500.0,0.00011205,2]
[353233584,1739693458031,-500.0,0.00011205,2]
[353233585,1739693458042,-500.0,0.00011205,2]
[353233586,1739693458051,-152.079373,0.00011205,2]
[353233587,1739693458061,-500.0,0.00011205,2]
[353233588,1739693458071,-500.0,0.00011205,2]
[353233589,1739693458081,-500.0,0.00011205,2]
[353233590,1739693458091,-510.3,0.00011205,2]
[353233591,1739693458100,-527.4589704,0.00011205,2]
[353233592,1739693458111,-500.0,0.00011205,2]
[353233593,1739693458120,-500.0,0.00011205,2]
[353233594,1739693458130,-500.0,0.00011205,2]
[353233595,1739693458139,-500.0,0.00011205,2]
[353233596,1739693458148,-500.0,0.00011205,2]
[353233597,1739693458158,-450.78349365,0.00011205,2]
[353233598,1739693458167,-500.0,0.00011205,2]
[353233599,1739693458181,-500.0,0.00011205,2]
[353233600,1739693458190,-336.58,0.00011205,2]
[353233601,1739693458201,-553.68,0.00011205,2]
[353233602,1739693458210,-500.0,0.00011205,2]
[353233603,1739693458220,-500.0,0.00011205,2]
[353233604,1739693458231,-500.0,0.00011205,2]
[353233605,1739693458240,-500.0,0.00011205,2]
[353233606,1739693458250,-500.0,0.00011205,2]
[353233607,1739693458261,-500.0,0.00011205,2]
[353233608,1739693458271,-500.0,0.00011205,2]
[353233609,1739693458281,-500.0,0.00011205,2]
[353233610,1739693458292,-500.0,0.00011205,2]
[353233611,1739693458302,-500.0,0.00011205,2]
[353233612,1739693458316,-500.0,0.00011205,2]
[353233613,1739693458326,-510.26,0.00011205,2]
[353233614,1739693458336,-500.0,0.00011205,2]
[353233615,1739693458346,-500.0,0.00011205,2]
[353233616,1739693458355,-681.72,0.00011205,2]
[353233617,1739693458365,-669.19,0.00011205,2]
[353233618,1739693458375,-500.0,0.00011205,2]
[353233619,1739693458384,-500.0,0.00011205,2]
[353233620,1739693458393,-535.78,0.00011205,2]
[353233621,1739693458403,-500.0,0.00011205,2]
[353233622,1739693458412,-500.0,0.00011205,2]
[353233623,1739693458421,-500.0,0.00011205,2]
[353233624,1739693458430,-685.05,0.00011205,2]
[353233625,1739693458440,-500.0,0.00011205,2]
[353233626,1739693458449,-680.9,0.00011205,2]
[353233627,1739693458459,-500.0,0.00011205,2]
[353233628,1739693458468,-527.02,0.00011205,2]
[353233629,1739693458477,-500.0,0.00011205,2]
[353233630,1739693458486,-500.0,0.00011205,2]
[353233631,1739693458495,-669.59,0.00011205,2]
[353233632,1739693458506,-500.0,0.00011205,2]
[353233633,1739693458516,-500.0,0.00011205,2]
[353233634,1739693458525,-500.0,0.00011205,2]
[353233635,1739693458535,-500.0,0.00011205,2]
[353233636,1739693458547,-500.0,0.00011205,2]
[353233637,1739693458556,-863.76,0.00011205,2]
[353233638,1739693458566,-500.0,0.00011205,2]
[353233639,1739693458575,-500.0,0.00011205,2]
[353233640,1739693458584,-842.56,0.00011205,2]
[353233641,1739693458593,-500.0,0.00011205,2]
[353233642,1739693458602,-500.0,0.00011205,2]
[353233643,1739693458612,-500.0,0.00011205,2]
[353233644,1739693458621,-533.36,0.00011205,2]
[353233645,1739693458630,-500.0,0.00011205,2]
[353233646,1739693458639,-500.0,0.00011205,2]
[353233647,1739693458648,-629.12,0.00011205,2]
[353233648,1739693458658,-500.0,0.00011205,2]
[353233649,1739693458670,-500.0,0.00011205,2]
[353233650,1739693458680,-500.0,0.00011205,2]
[353233651,1739693458691,-500.0,0.00011205,2]
[353233652,1739693458701,-500.0,0.00011205,2]
[353233653,1739693458710,-500.0,0.00011205,2]
[353233654,1739693458719,-500.0,0.00011205,2]
[353233655,1739693458729,-500.0,0.00011205,2]
[353233656,1739693458740,-500.0,0.00011205,2]
[353233657,1739693458749,-1940.01,0.00011205,2]
[353233658,1739693458759,-508.33,0.00011205,2]
[353233659,1739693458768,-688.54,0.00011205,2]
[353233660,1739693458778,-733.95,0.00011205,2]
[353233661,1739693458787,-500.0,0.00011205,2]
[353233662,1739693458797,-699.65,0.00011205,2]
[353233663,1739693458807,-500.0,0.00011205,2]
[353233664,1739693458815,-603.10201817,0.00011205,2]
[353233665,1739693458824,-473.07761849,0.00011205,2]
[353233666,1739693458833,-500.0,0.00011205,2]
[353233667,1739693458843,-1010.83,0.00011205,2]
[353233668,1739693458852,-500.0,0.00011205,2]
[353233669,1739693458862,-500.0,0.00011205,2]
[353233670,1739693458871,-500.0,0.00011205,2]
[353233671,1739693458880,-500.0,0.00011205,2]
[353233672,1739693458889,-575.87,0.00011205,2]
[353233673,1739693458898,-151.0,0.00011205,2]
[353233674,1739693458907,-610.37,0.00011205,2]
[353233675,1739693458916,-305.6,0.00011205,2]
[353233676,1739693458925,-708.75,0.00011205,2]
[353233677,1739693458934,-1037.76,0.00011205,2]
[353233678,1739693458942,-500.0,0.00011205,2]
[353233679,1739693458952,-500.0,0.00011205,2]
[353233680,1739693458962,-500.0,0.00011205,2]
[353233681,1739693458971,-500.0,0.00011205,2]
[353233682,1739693458980,-571.28,0.00011205,2]
[353233683,1739693458990,-500.0,0.00011205,2]
[353233684,1739693458998,-500.0,0.00011205,2]
[353233685,1739693459008,-500.0,0.00011205,2]
[353233686,1739693459017,-500.0,0.00011205,2]
[353233687,1739693459026,-917.4,0.00011205,2]
[353233688,1739693459035,-1418.61,0.00011205,2]
[353233689,1739693459044,-500.0,0.00011205,2]
[353233690,1739693459054,-500.0,0.00011205,2]
[353233691,1739693459063,-500.0,0.00011205,2]
[353233692,1739693459072,-574.07,0.00011205,2]
[353233693,1739693459080,-1235.91,0.00011205,2]
[353233694,1739693459089,-500.0,0.00011205,2]